bitfinex/quotes_BTCUSD_20250422
["timestamp","ask_amount","ask_price","bid_price","bid_amount"]
[1745288780500,0.15145616,88106.0,88105.0,0.0004227]
[1745288780704,0.03770022,88106.0,88105.0,0.0004227]
[1745288781127,0.01656252,88106.0,88105.0,0.0004227]
[1745288781733,0.006,88106.0,88105.0,0.0004227]
[1745288782161,0.006,88106.0,88105.0,0.3404227]
[1745288791440,0.006,88106.0,88105.0,0.0004227]
[1745288791882,0.006,88106.0,88105.0,0.3404227]
[1745288794414,0.32859929,88106.0,88105.0,0.0004227]
[1745288794631,0.44235523,88106.0,88105.0,0.0004227]
[1745288796385,0.1016,88106.0,88105.0,0.22742457]
[1745288797022,0.1016,88106.0,88105.0,0.0004227]
[1745288799105,0.21535594,88106.0,88105.0,0.0004227]
[1745288799742,0.11975594,88106.0,88105.0,0.0004227]
[1745288800830,0.11975594,88106.0,88105.0,0.22742457]
[1745288801038,0.006,88106.0,88105.0,0.22742457]
[1745288801590,0.006,88106.0,88105.0,0.56742457]
[1745288803836,0.006,88106.0,88105.0,0.3404227]
[1745288810191,0.0017236,88106.0,88105.0,0.3404227]
[1745288813677,4.586e-05,88116.0,88113.0,0.01134906]
[1745288815066,0.00304586,88116.0,88113.0,0.01234906]
[1745288815280,0.00304586,88116.0,88115.0,0.34]
[1745288816070,0.00804586,88116.0,88115.0,0.34]
[1745288816594,0.00304586,88116.0,88115.0,0.34]
[1745288816810,4.586e-05,88116.0,88115.0,0.34]
[1745288817373,0.00304586,88116.0,88115.0,0.34]
[1745288817869,0.00804586,88116.0,88115.0,0.341]
[1745288819981,0.24636806,88116.0,88113.0,0.01034906]
[1745288820179,0.01939453,88116.0,88112.0,0.34]
[1745288820391,0.01939453,88116.0,88112.0,0.57833103]
[1745288820665,0.24636911,88116.0,88112.0,0.35134919]
[1745288820864,0.0113488,88115.0,88112.0,0.34]
[1745288820990,0.23832676,88115.0,88113.0,0.001]
[1745288821191,0.24336807,88116.0,88113.0,0.001]
[1745288821407,0.24636807,88116.0,88113.0,0.001]
[1745288821616,0.24136807,88116.0,88112.0,0.35234919]
[1745288821984,0.24136807,88116.0,88112.0,0.58033132]
[1745288821985,0.01839453,88116.0,88112.0,0.58033132]
[1745288822209,0.23832491,88115.0,88112.0,0.341]
[1745288822434,0.23832491,88115.0,88112.0,0.34]
[1745288822850,0.23832491,88115.0,88113.0,0.001]
[1745288823372,0.23832491,88115.0,88113.0,0.002]
[1745288823809,0.23832491,88115.0,88113.0,0.001]
[1745288824023,0.22598641,88111.0,88110.0,0.34]
[1745288824262,0.22498641,88111.0,88110.0,0.34]
[1745288824611,0.23834248,88109.0,88106.0,0.22206718]
[1745288824807,0.22699875,88107.0,88105.0,0.0004227]
[1745288825018,0.22599875,88107.0,88105.0,0.0004227]
[1745288825799,0.22599875,88107.0,88106.0,0.001]
[1745288826128,0.38535469,88107.0,88106.0,0.001]
[1745288826334,0.43515469,88107.0,88106.0,0.001]
[1745288827188,0.45828404,88107.0,88106.0,0.001]
[1745288827552,0.45828404,88107.0,88105.0,0.0004227]
[1745288827764,0.11375594,88106.0,88105.0,0.0004227]
[1745288827992,0.16355594,88106.0,88105.0,0.0004227]
[1745288828290,0.24676482,88106.0,88105.0,0.0004227]
[1745288829198,0.22563547,88106.0,88105.0,0.0004227]
[1745288830764,0.23263547,88106.0,88105.0,0.0004227]
[1745288830972,0.23663547,88106.0,88105.0,0.0004227]
[1745288831598,0.22607201,88106.0,88105.0,0.0004227]
[1745288831806,0.22607201,88106.0,88092.0,0.0004226]
[1745288831807,0.22703021,88094.0,88092.0,0.0004226]
[1745288832030,0.84038615,88094.0,88093.0,0.26219347]
[1745288832253,0.22703537,88092.0,88091.0,1e-08]
[1745288832458,0.38789131,88092.0,88091.0,1e-08]
[1745288832673,0.40896449,88092.0,88091.0,1e-08]
[1745288833667,0.41296449,88092.0,88091.0,1e-08]
[1745288834627,0.41796449,88092.0,88091.0,1e-08]
[1745288835159,0.39689131,88092.0,88091.0,1e-08]
[1745288836201,0.44189131,88092.0,88091.0,1e-08]
[1745288837684,0.2270431,88089.0,88088.0,1e-08]
[1745288837884,0.43359904,88089.0,88088.0,1e-08]
[1745288839010,0.43364488,88089.0,88088.0,1e-08]
[1745288840074,0.43764488,88089.0,88088.0,1e-08]
[1745288840373,0.44364488,88089.0,88088.0,1e-08]
[1745288841055,0.85114488,88089.0,88088.0,1e-08]
[1745288841258,0.96489693,88089.0,88088.0,1e-08]
[1745288841474,0.96489693,88089.0,88078.0,0.0004227]
[1745288841475,0.3198663,88080.0,88078.0,1e-08]
[1745288841692,0.16055594,88079.0,88078.0,1e-08]
[1745288842935,0.0468,88070.0,88062.0,0.0004227]
[1745288843196,0.56805594,88070.0,88062.0,0.0004227]
[1745288843722,0.62337201,88070.0,88062.0,0.0004227]
[1745288843959,0.62337201,88070.0,88052.0,0.0004227]
[1745288843960,0.10785615,88058.0,88052.0,1e-08]
[1745288844189,0.10785615,88058.0,88029.0,0.01430906]
[1745288844190,0.22715656,88045.0,88044.0,0.2211306]
[1745288844409,0.3903125,88045.0,88044.0,0.2211306]
[1745288845112,0.3903125,88045.0,88044.0,1e-08]
[1745288845593,0.39035929,88045.0,88044.0,1e-08]
[1745288846046,0.39435929,88045.0,88044.0,1e-08]
[1745288846289,0.34495929,88045.0,88044.0,1e-08]
[1745288846727,0.34795929,88045.0,88044.0,1e-08]
[1745288847127,0.00704679,88045.0,88044.0,1e-08]
[1745288847483,0.00704679,88045.0,88044.0,0.38760001]
[1745288847697,0.00704679,88045.0,88044.0,0.43460001]
[1745288848841,0.00304679,88045.0,88044.0,0.43460001]
[1745288849719,0.00504679,88045.0,88044.0,0.43460001]
[1745288850352,0.00504679,88045.0,88044.0,0.66175915]
[1745288850575,0.00604679,88045.0,88032.0,0.4167]
[1745288850791,0.13116055,88045.0,88037.0,0.01135886]
[1745288850997,0.11980273,88045.0,88039.0,0.0113586]
[1745288851300,0.01135808,88043.0,88034.0,0.23854419]
[1745288851492,0.11980273,88045.0,88037.0,0.01135886]
[1745288851694,0.11980273,88045.0,88040.0,0.2271688]
[1745288851910,0.11780273,88045.0,88041.0,0.01135834]
[1745288852333,0.11780273,88045.0,88036.0,0.22717917]
[1745288852334,0.2385198,88043.0,88031.0,0.10528]
[1745288852553,0.34092024,88042.0,88034.0,0.01135924]
[1745288852770,0.01135834,88041.0,88032.0,0.0113595]
[1745288852992,0.12511441,88040.0,88035.0,0.01135911]
[1745288853418,0.0113586,88039.0,88033.0,0.01135937]
[1745288853650,0.12511454,88039.0,88033.0,0.01135937]
[1745288854093,0.11375594,88039.0,88034.0,0.01135924]
[1745288854303,0.11375594,88039.0,88032.0,0.0339674]
[1745288854517,0.11375594,88039.0,88033.0,0.01135937]
[1745288854971,0.01135873,88038.0,88033.0,0.01135937]
[1745288855607,0.01135873,88038.0,88032.0,0.0339674]
[1745288855818,0.12711454,88039.0,88033.0,0.01135937]
[1745288856032,0.12811454,88039.0,88033.0,0.01135937]
[1745288856262,0.12511454,88039.0,88033.0,0.01135937]
[1745288856472,0.05,88072.0,88033.0,0.01135937]
[1745288856473,0.22712271,88059.0,88042.0,0.22716226]
[1745288856681,0.45409565,88088.0,88042.0,0.22716226]
[1745288856682,0.01135589,88060.0,88044.0,0.22715914]
[1745288857107,0.06075615,88058.0,88044.0,0.22715914]
[1745288857317,0.4075,88057.0,88044.0,0.22715914]
[1745288858891,0.00604679,88045.0,88044.0,0.22715914]
[1745288859353,0.00404679,88045.0,88044.0,0.22715914]
[1745288859575,0.00604679,88045.0,88044.0,0.22715914]
[1745288861072,0.00604679,88045.0,88042.0,0.01135821]
[1745288861492,0.00604679,88045.0,88044.0,0.22715914]
[1745288862187,0.00304679,88045.0,88044.0,0.22715914]
[1745288862449,0.00604679,88045.0,88044.0,0.22715914]
[1745288862916,0.00304679,88045.0,88044.0,0.22715914]
[1745288863255,0.00604679,88045.0,88044.0,0.22715914]
[1745288863835,0.11980273,88045.0,88040.0,0.35135847]
[1745288863971,0.11980273,88045.0,88041.0,0.01135834]
[1745288864396,0.0462,88044.0,88035.0,0.01135911]
[1745288864605,0.01135808,88043.0,88036.0,0.23853877]
[1745288864779,0.01135808,88043.0,88038.0,0.01135873]
[1745288864982,0.01135834,88041.0,88036.0,0.01135898]
[1745288865241,0.01135808,88043.0,88036.0,0.01135898]
[1745288865444,0.11375594,88040.0,88036.0,0.01135898]
[1745288865860,0.12511441,88040.0,88035.0,0.01135911]
[1745288866504,0.12511441,88040.0,88034.0,0.56718244]
[1745288866505,0.12511441,88040.0,88034.0,0.22718244]
[1745288867340,0.11375594,88040.0,88036.0,0.01135898]
[1745288867762,0.12911441,88040.0,88036.0,0.01135898]
[1745288867959,0.01135873,88038.0,88033.0,0.01135937]
[1745288868161,0.12911441,88040.0,88033.0,0.22718625]
[1745288868363,0.13011441,88040.0,88034.0,0.01135924]
[1745288868574,0.13011441,88040.0,88031.0,0.02268292]
[1745288868575,0.23854598,88034.0,88031.0,0.02268292]
[1745288868774,0.23854598,88034.0,88029.0,0.01430906]
[1745288868775,0.12511531,88033.0,88029.0,0.01430906]
[1745288869014,0.046,88032.0,88029.0,0.01430906]
[1745288869201,0.11375594,88031.0,88029.0,0.03456851]
[1745288869412,0.11375594,88031.0,88029.0,0.01430906]
[1745288870075,0.02104254,88030.0,88029.0,0.01430906]
[1745288870322,0.36199375,88030.0,88029.0,0.03527205]
[1745288870534,0.36199375,88030.0,88029.0,0.01430906]
[1745288870729,0.13479848,88030.0,88029.0,0.01430906]
[1745288870935,0.14532181,88030.0,88029.0,0.01430906]
[1745288871505,0.14632181,88030.0,88029.0,0.01530906]
[1745288871687,0.14532181,88030.0,88029.0,0.01430906]
[1745288871890,0.14732181,88030.0,88029.0,0.01430906]
[1745288872098,0.14932181,88030.0,88029.0,0.01430906]
[1745288872508,0.19552181,88030.0,88029.0,0.01430906]
[1745288873054,0.19552181,88030.0,88029.0,0.03426787]
[1745288873259,0.19552181,88030.0,88029.0,0.01430906]
[1745288874206,0.19943788,88030.0,88029.0,0.01430906]
[1745288874494,0.19743788,88030.0,88029.0,0.01430906]
[1745288874635,0.20243788,88030.0,88029.0,0.03526796]
[1745288875033,0.20543788,88030.0,88029.0,0.03526796]
[1745288875241,0.61293788,88030.0,88029.0,0.03526796]
[1745288875815,0.60793788,88030.0,88029.0,0.03526796]
[1745288876019,0.60493788,88030.0,88029.0,0.03526796]
[1745288876229,0.60893788,88030.0,88029.0,0.03526796]
[1745288877174,0.61393788,88030.0,88029.0,0.03526796]
[1745288879638,0.27260301,88027.0,88026.0,0.0004229]
[1745288879913,0.85098228,88027.0,88026.0,0.0004229]
[1745288880132,0.87202482,88027.0,88026.0,0.0004229]
[1745288880959,0.87502482,88027.0,88026.0,0.0004229]
[1745288881522,0.22720817,88025.0,88024.0,0.0127322]
[1745288881770,0.44750496,88025.0,88024.0,0.0127322]
[1745288882195,0.44750496,88025.0,88024.0,0.0077322]
[1745288882412,0.47907083,88025.0,88024.0,0.0077322]
[1745288882642,0.46452998,88025.0,88024.0,0.0077322]
[1745288883112,1.34032288,88025.0,88024.0,0.0077322]
[1745288883347,0.67375935,88021.0,88020.0,0.01000069]
[1745288883574,0.78751529,88021.0,88020.0,0.01000069]
[1745288883803,0.80855783,88021.0,88020.0,0.01000069]
[1745288884036,0.80855783,88021.0,88020.0,1e-08]
[1745288884037,0.97330988,88021.0,88020.0,1e-08]
[1745288884511,0.31924948,88009.0,88000.0,0.02617798]
[1745288884738,0.95034542,88009.0,88000.0,0.02617798]
[1745288884967,0.96086875,88009.0,88000.0,0.02617798]
[1745288885195,0.98191129,88009.0,88000.0,0.02617798]
[1745288885863,0.98191129,88009.0,88008.0,0.00088114]
[1745288886531,1.09566334,88009.0,88008.0,0.00088114]
[1745288886769,0.98191129,88009.0,88008.0,0.00088114]
[1745288887441,0.98791129,88009.0,88008.0,0.00088114]
[1745288887673,0.99191129,88009.0,88008.0,0.00088114]
[1745288888611,0.88207129,88009.0,88008.0,0.00088114]
[1745288888854,0.99635129,88009.0,88008.0,0.00088114]
[1745288889596,1.00124492,88009.0,88008.0,0.00088114]
[1745288889814,0.88696492,88009.0,88008.0,0.00088114]
[1745288890019,1.00124492,88009.0,88008.0,0.00088114]
[1745288890230,1.02006999,88009.0,88008.0,0.00088114]
[1745288890667,0.23862821,88003.0,88000.0,0.02248172]
[1745288890902,0.22727014,88001.0,88000.0,0.02248172]
[1745288891127,0.34102608,88001.0,88000.0,0.02248172]
[1745288891368,0.37259195,88001.0,88000.0,0.02248172]
[1745288892296,0.37559195,88001.0,88000.0,0.02248172]
[1745288892525,0.46815994,88001.0,88000.0,1e-08]
[1745288892751,0.27318305,87996.0,87995.0,1.0]
[1745288892960,0.79443899,87996.0,87995.0,1.0]
[1745288893210,0.82600486,87996.0,87995.0,0.9943209]
[1745288894116,0.82600486,87996.0,87995.0,0.98580224]
[1745288894330,0.83400486,87996.0,87995.0,0.98580224]
[1745288894547,0.95788486,87996.0,87995.0,0.98580224]
[1745288895004,1.00518486,87996.0,87995.0,0.98580224]
[1745288895220,1.00218486,87996.0,87995.0,0.98580224]
[1745288895439,0.98014232,87996.0,87995.0,0.98580224]
[1745288895900,0.98514232,87996.0,87995.0,0.98580224]
[1745288896126,1.09889437,87996.0,87995.0,0.98580224]
[1745288896367,0.98014232,87996.0,87995.0,0.98580224]
[1745288896826,0.98614232,87996.0,87995.0,0.98580224]
[1745288897333,0.97614232,87996.0,87995.0,0.98580224]
[1745288897568,0.98614232,87996.0,87995.0,0.98580224]
[1745288899161,1.00068317,87996.0,87995.0,0.98580224]
[1745288900726,1.00168317,87996.0,87995.0,0.4726314]
[1745288901190,0.98614232,87996.0,87995.0,0.4726314]
[1745288901855,1.00068317,87996.0,87995.0,0.4726314]
[1745288903362,1.10465437,87996.0,87995.0,0.4726314]
[1745288903558,1.00544317,87996.0,87995.0,0.4726314]
[1745288903756,0.87680317,87996.0,87995.0,0.4726314]
[1745288903964,1.00544317,87996.0,87995.0,0.4726314]
[1745288904371,1.00644317,87996.0,87995.0,1e-08]
[1745288904560,1.12019522,87996.0,87995.0,1e-08]
[1745288904801,1.12019522,87996.0,87993.0,0.000423]
[1745288904802,0.01554085,87994.0,87993.0,1e-08]
[1745288905080,0.3231218,87981.0,87980.0,0.0004227]
[1745288905252,0.84437773,87981.0,87980.0,0.0004227]
[1745288905461,0.85490106,87981.0,87980.0,0.0004227]
[1745288906246,0.85535886,87981.0,87980.0,0.0004227]
[1745288906761,0.53223706,87981.0,87980.0,0.0004227]
[1745288907833,0.53923706,87981.0,87980.0,0.0004227]
[1745288909546,0.53923706,87981.0,87980.0,0.27744709]
[1745288909750,0.53923706,87981.0,87980.0,0.28454605]
[1745288910555,0.13173707,87981.0,87980.0,0.28454605]
[1745288911010,0.01798113,87981.0,87980.0,0.28454605]
[1745288911860,0.01798113,87981.0,87978.0,0.01136647]
[1745288912242,0.0074578,87981.0,87980.0,0.22732439]
[1745288912838,0.0074578,87981.0,87980.0,0.61252439]
[1745288913044,0.0034578,87981.0,87980.0,0.56732439]
[1745288913560,0.01397241,87981.0,87980.0,0.34]
[1745288914427,0.13172835,87981.0,87975.0,0.01136686]
[1745288914634,0.11375594,87980.0,87976.0,0.35136673]
[1745288914933,0.12427055,87980.0,87976.0,0.35136673]
[1745288915354,0.12427055,87980.0,87977.0,0.0113666]
[1745288915693,0.01051461,87979.0,87977.0,0.0113666]
[1745288915901,0.11375594,87978.0,87977.0,0.0113666]
[1745288916335,0.11375594,87978.0,87977.0,0.57869874]
[1745288917146,0.11375594,87978.0,87971.0,0.05656738]
[1745288917147,0.11375594,87978.0,87971.0,0.01136738]
[1745288917351,0.11375594,87978.0,87975.0,0.01136686]
[1745288917673,0.01051603,87977.0,87974.0,0.22733989]
[1745288917877,0.11375594,87976.0,87974.0,0.23870688]
[1745288918826,0.11375594,87976.0,87972.0,0.23871231]
[1745288919029,0.11375594,87976.0,87974.0,0.22733989]
[1745288919231,0.11375594,87976.0,87973.0,0.01136712]
[1745288919590,0.22736574,87964.0,87962.0,0.00848]
[1745288919790,0.12427295,87964.0,87962.0,0.00848]
[1745288920070,0.35163896,87964.0,87963.0,0.02000894]
[1745288920356,0.12427295,87964.0,87962.0,0.00848]
[1745288920598,0.11375594,87963.0,87962.0,0.00848]
[1745288921202,0.12427295,87963.0,87962.0,0.00848]
[1745288921619,0.12427295,87963.0,87957.0,0.23917404]
[1745288921850,0.12427295,87963.0,87958.0,0.02060659]
[1745288922023,0.12527295,87963.0,87957.0,0.23917404]
[1745288922253,0.01051701,87962.0,87960.0,0.0113688]
[1745288922433,0.11375594,87961.0,87960.0,0.0113688]
[1745288922591,0.11375594,87961.0,87957.0,0.23917404]
[1745288922592,0.11375594,87961.0,87958.0,0.01136906]
[1745288922786,0.11375594,87961.0,87958.0,0.03220694]
[1745288923192,0.22738125,87958.0,87957.0,0.0004232]
[1745288923396,0.39043719,87958.0,87957.0,0.0004232]
[1745288923625,0.12427295,87958.0,87957.0,0.0004232]
[1745288923808,0.12427295,87958.0,87957.0,0.00752369]
[1745288924008,0.3516542,87958.0,87957.0,0.00752369]
[1745288924648,0.3546542,87958.0,87957.0,0.00752369]
[1745288925250,0.3596542,87958.0,87957.0,0.00752369]
[1745288926280,0.34913719,87958.0,87957.0,0.00752369]
[1745288926845,0.39623719,87958.0,87957.0,0.00752369]
[1745288927183,0.39623719,87958.0,87957.0,0.0004232]
[1745288927464,0.4067542,87958.0,87957.0,0.0004232]
[1745288928037,0.3987542,87958.0,87957.0,0.0004232]
[1745288928239,0.4067542,87958.0,87957.0,0.0004232]
[1745288928565,0.4560542,87958.0,87957.0,0.0004232]
[1745288929149,0.47059505,87958.0,87957.0,0.0004232]
[1745288929324,0.4560542,87958.0,87957.0,0.0004232]
[1745288929530,0.22867295,87958.0,87957.0,0.0004232]
[1745288930074,0.22567295,87958.0,87957.0,0.0004232]
[1745288930286,0.22067295,87958.0,87957.0,0.0004232]
[1745288930423,0.21415594,87958.0,87957.0,0.0004232]
[1745288930631,0.39643719,87958.0,87957.0,0.0004232]
[1745288930840,0.40043719,87958.0,87957.0,0.0004232]
[1745288931034,0.16705594,87958.0,87957.0,0.0004232]
[1745288931263,0.16805594,87958.0,87957.0,0.00752362]
[1745288931656,0.39943719,87958.0,87957.0,0.00752362]
[1745288931785,0.39443719,87958.0,87957.0,0.00752362]
[1745288931988,0.16705594,87958.0,87957.0,0.00752362]
[1745288932192,0.12275594,87958.0,87957.0,0.00752362]
[1745288932451,0.12275594,87958.0,87957.0,0.23490745]
[1745288932622,0.01136945,87955.0,87952.0,0.02068496]
[1745288932946,0.11375594,87954.0,87951.0,0.01136996]
[1745288933155,0.11375594,87954.0,87953.0,0.22739417]
[1745288934125,0.11821346,87954.0,87953.0,0.22739417]
[1745288934371,0.11421346,87954.0,87953.0,0.22739417]
[1745288934721,0.11821346,87954.0,87953.0,0.22839417]
[1745288934926,0.12421346,87954.0,87953.0,0.22839417]
[1745288935165,0.01045752,87954.0,87953.0,0.22839417]
[1745288935385,0.01637359,87954.0,87953.0,0.22839417]
[1745288936833,0.01637359,87954.0,87953.0,0.56839417]
[1745288937503,0.01045752,87954.0,87953.0,0.56839417]
[1745288937704,0.00445752,87954.0,87953.0,0.56839417]
[1745288937947,0.00045752,87954.0,87953.0,0.56739417]
[1745288938119,0.00445752,87954.0,87953.0,0.56839417]
[1745288938337,0.00745752,87954.0,87953.0,0.56939417]
[1745288938712,0.00345752,87954.0,87953.0,0.56939417]
[1745288939148,0.00745752,87954.0,87953.0,0.56939417]
[1745288939348,0.004,87954.0,87953.0,0.56939417]
[1745288939590,0.004,87954.0,87953.0,0.56839417]
[1745288939799,0.003,87954.0,87953.0,0.56839417]
[1745288940012,0.005,87954.0,87953.0,0.56939417]
[1745288940539,0.001,87963.0,87962.0,0.22737091]
[1745288940750,0.001,87963.0,87962.0,0.22746962]
[1745288942029,0.006,87963.0,87962.0,0.22846962]
[1745288943045,0.007,87963.0,87962.0,0.22846962]
[1745288943919,0.12075594,87963.0,87962.0,0.22846962]
[1745288944545,0.007,87963.0,87962.0,0.22846962]
[1745288944764,0.007,87963.0,87962.0,0.23556879]
[1745288946328,0.007,87963.0,87962.0,0.57784236]
[1745288946568,0.007,87963.0,87962.0,0.57556879]
[1745288947841,0.007,87963.0,87962.0,0.65406879]
[1745288950773,0.007,87963.0,87962.0,0.62376879]
[1745288952047,0.00591607,87975.0,87974.0,0.56733989]
[1745288952714,0.00591607,87975.0,87974.0,0.57443906]
[1745288953590,0.00691607,87975.0,87974.0,0.57443906]
[1745288954044,0.00991607,87975.0,87974.0,0.57543906]
[1745288954794,0.00891607,87975.0,87974.0,0.57543906]
[1745288955239,0.00991607,87975.0,87974.0,0.57543906]
[1745288955933,0.00991607,87975.0,87974.0,0.57443906]
[1745288955934,0.00691607,87975.0,87974.0,0.57443906]
[1745288956153,0.001,87975.0,87974.0,0.57443906]
[1745288956646,1e-08,87975.0,87974.0,0.57443906]
[1745288956869,0.00591607,87990.0,87989.0,0.56730113]
[1745288957554,0.00591607,87990.0,87989.0,0.5744003]
[1745288958271,0.00591607,87990.0,87989.0,0.57449901]
[1745288958779,0.00591607,87990.0,87989.0,0.57549901]
[1745288960227,0.00691607,87990.0,87989.0,0.57549901]
[1745288965281,0.00090607,87990.0,87989.0,0.57549901]
[1745288970313,0.0008454,87995.0,87994.0,0.56728822]
[1745288970733,0.0008454,87995.0,87994.0,0.57438739]
[1745288972208,0.0018454,87995.0,87994.0,0.57538739]
[1745288974148,0.0466,88014.0,88013.0,0.22723915]
[1745288974348,0.0466,88014.0,88013.0,0.57433832]
[1745288975219,0.0496,88014.0,88013.0,0.57433832]
[1745288975365,0.0516,88014.0,88013.0,0.57433832]
[1745288975978,0.0486,88014.0,88013.0,0.57433832]
[1745288976187,0.0516,88014.0,88013.0,0.57433832]
[1745288977008,0.0496,88014.0,88013.0,0.57433832]
[1745288977217,0.0516,88014.0,88013.0,0.57433832]
[1745288977733,0.0496,88014.0,88013.0,0.57433832]
[1745288977935,0.0476,88014.0,88013.0,0.57433832]
[1745288978337,0.0486,88014.0,88013.0,0.57433832]
[1745288978719,0.0486,88014.0,88013.0,0.59322316]
[1745288981074,0.002,88014.0,88013.0,0.59322316]
[1745288985441,0.0008454,88026.0,88025.0,0.56720817]
[1745288985855,0.0008454,88026.0,88025.0,0.57430734]
[1745288986890,0.0008454,88026.0,88025.0,0.57440605]
[1745288987294,0.0008454,88026.0,88025.0,0.57440587]
[1745288988101,0.0950454,88026.0,88025.0,0.00719788]
[1745288988306,0.20980134,88026.0,88025.0,0.00719788]
[1745288988521,0.20980134,88026.0,88013.0,0.001]
[1745288988522,0.22723657,88014.0,88013.0,0.001]
[1745288988776,0.43419251,88014.0,88013.0,0.001]
[1745288989545,0.20795594,88014.0,88013.0,0.001]
[1745288990134,0.20895594,88014.0,88013.0,0.001]
[1745288990333,0.01136583,87983.0,87980.0,0.31223393]
[1745288990540,0.0454,87985.0,87981.0,0.01136609]
[1745288990763,0.0454,87985.0,87982.0,0.01136596]
[1745288991247,0.0454,87985.0,87983.0,0.22731664]
[1745288991451,0.0454,87985.0,87981.0,0.01895317]
[1745288991676,0.11375594,87984.0,87982.0,0.22731696]
[1745288993087,0.11375594,87984.0,87981.0,0.01876858]
[1745288993302,0.12512164,87984.0,87982.0,0.001]
[1745288993527,0.11375594,87984.0,87982.0,0.001]
[1745288993739,0.11475594,87984.0,87982.0,0.001]
[1745288993922,0.12612164,87984.0,87980.0,0.01136621]
[1745288994226,0.12512164,87984.0,87979.0,0.01136634]
[1745288994438,0.01136647,87978.0,87974.0,0.34]
[1745288994777,0.11375594,87977.0,87974.0,0.37026422]
[1745288994954,0.11375594,87977.0,87974.0,0.01889723]
[1745288995158,0.11375594,87977.0,87974.0,0.03026422]
[1745288995492,0.11375594,87977.0,87973.0,0.23870897]
[1745288995912,0.11375594,87977.0,87975.0,0.22733682]
[1745288996142,0.11375594,87977.0,87976.0,0.34]
[1745288997076,0.001,87984.0,87983.0,0.34]
[1745288997699,0.00013727,87985.0,87984.0,0.22731405]
[1745288997903,0.11389321,87985.0,87984.0,0.22731405]
[1745288998103,0.00013727,87985.0,87984.0,0.56731405]
[1745289000423,0.00013727,87985.0,87984.0,0.56831405]
[1745289000625,0.00113727,87985.0,87984.0,0.56831405]
[1745289001180,0.00013727,87985.0,87984.0,0.56831405]
[1745289002367,0.00113727,87985.0,87984.0,0.001]
[1745289002577,0.11489321,87985.0,87984.0,0.001]
[1745289002793,0.11489321,87985.0,87983.0,0.22731548]
[1745289003614,0.11589321,87985.0,87983.0,0.22731548]
[1745289003839,0.11789321,87985.0,87983.0,0.22731548]
[1745289004220,0.11689321,87985.0,87983.0,0.22731548]
[1745289004520,0.11889321,87985.0,87983.0,0.22731548]
[1745289004725,0.00513727,87985.0,87983.0,0.22731548]
[1745289005134,0.00313727,87985.0,87983.0,0.22731548]
[1745289005332,0.00013727,87985.0,87983.0,0.22731548]
[1745289005539,0.11589321,87985.0,87976.0,0.01136673]
[1745289005745,0.11689321,87985.0,87984.0,0.34]
[1745289006583,0.11389321,87985.0,87984.0,0.34]
[1745289007004,0.11489321,87985.0,87984.0,0.34]
[1745289007634,0.11489321,87985.0,87983.0,0.2273161]
[1745289007830,0.11489321,87985.0,87983.0,0.34]
[1745289007986,0.11375594,87984.0,87975.0,0.22206718]
[1745289008192,0.11375594,87984.0,87980.0,0.01136621]
[1745289008390,0.11375594,87984.0,87981.0,0.01136609]
[1745289008874,0.11375594,87984.0,87981.0,0.23868766]
[1745289009092,0.11375594,87984.0,87983.0,0.56731664]
[1745289009745,0.11475594,87984.0,87983.0,0.56731664]
[1745289009998,0.11375594,87984.0,87983.0,0.56731664]
[1745289010180,0.11475594,87984.0,87983.0,0.56731664]
[1745289010818,0.11575594,87984.0,87983.0,0.56731664]
[1745289011748,0.11575594,87984.0,87983.0,0.34]
[1745289011966,0.11375594,87984.0,87983.0,0.34]
[1745289012372,0.11475594,87984.0,87983.0,0.34]
[1745289012930,0.11575594,87984.0,87983.0,0.34]
[1745289013776,0.11675594,87984.0,87983.0,0.34]
[1745289014293,0.11575594,87984.0,87983.0,0.34]
[1745289014653,0.11675594,87984.0,87983.0,0.34]
[1745289016468,0.01136673,87976.0,87971.0,0.35136738]
[1745289016672,0.0486,87974.0,87973.0,0.02831331]
[1745289016871,0.16235594,87974.0,87973.0,0.2387096]
[1745289017082,0.16235594,87974.0,87973.0,0.25632586]
[1745289017284,0.0486,87974.0,87973.0,0.25632586]
[1745289017487,0.0495,87982.0,87981.0,0.2273218]
[1745289017827,0.21185594,87982.0,87981.0,0.2305967]
[1745289019659,0.21285594,87982.0,87981.0,0.2305967]
[1745289020448,0.21385594,87982.0,87981.0,0.2305967]
[1745289020813,0.21585594,87982.0,87981.0,0.2305967]
[1745289023069,0.21585594,87982.0,87981.0,0.0032749]
[1745289023278,0.44317516,87982.0,87981.0,0.0032749]
[1745289023473,0.21585594,87982.0,87978.0,0.22732955]
[1745289023698,0.11375594,87981.0,87979.0,0.01136634]
[1745289024685,0.12512203,87981.0,87977.0,0.0113666]
[1745289024846,0.11375594,87981.0,87978.0,0.01136647]
[1745289025042,0.11375594,87981.0,87978.0,0.00330245]
[1745289025270,0.11375594,87981.0,87953.0,0.0004225]
[1745289025271,0.01136841,87963.0,87953.0,0.0004225]
[1745289025501,0.01136893,87959.0,87953.0,0.0117922]
[1745289025709,0.11375594,87958.0,87955.0,0.2387559]
[1745289026134,0.125125,87958.0,87955.0,0.01136945]
[1745289026337,0.11375594,87958.0,87955.0,0.23875824]
[1745289026553,0.11375594,87958.0,87955.0,0.23875788]
[1745289026811,0.11375594,87958.0,87955.0,0.01136945]
[1745289027017,0.22739159,87954.0,87953.0,0.01745737]
[1745289027237,0.34114753,87954.0,87953.0,0.01745737]
[1745289027471,0.11375594,87954.0,87953.0,0.01745737]
[1745289027699,0.11375594,87954.0,87953.0,0.24485154]
[1745289028147,0.11375594,87954.0,87953.0,0.01745737]
[1745289028609,0.11475594,87954.0,87953.0,0.01745737]
[1745289029457,0.11475594,87954.0,87953.0,0.0004225]
[1745289029687,0.11575594,87954.0,87953.0,0.0004225]
[1745289029928,0.11475594,87954.0,87953.0,0.0004225]
[1745289030168,0.59416786,87954.0,87953.0,0.0004225]
[1745289030412,0.2773071,87948.0,87947.0,0.0002676]
[1745289030654,0.39106304,87948.0,87947.0,0.0002676]
[1745289030889,0.39206304,87948.0,87947.0,0.0002676]
[1745289031105,0.42257578,87948.0,87947.0,0.0002676]
[1745289031326,0.42357578,87948.0,87947.0,0.0002676]
[1745289032130,0.42557578,87948.0,87947.0,0.0002676]
[1745289033158,0.54309578,87948.0,87947.0,0.0002676]
[1745289034072,0.54409578,87948.0,87947.0,0.0002676]
[1745289034324,0.95159577,87948.0,87947.0,0.0002676]
[1745289035034,0.93058384,87948.0,87947.0,0.0002676]
[1745289035273,0.92008303,87948.0,87947.0,0.0002676]
[1745289038094,0.9259991,87948.0,87947.0,0.0002676]
[1745289040670,0.9259991,87948.0,87947.0,0.00349873]
[1745289040866,0.9259991,87948.0,87947.0,0.0002676]
[1745289041032,0.9259991,87948.0,87947.0,0.00349873]
[1745289042318,0.580072,87948.0,87947.0,0.00349873]
[1745289042752,0.530172,87948.0,87947.0,0.00349873]